Workbook

Sheet 花名册
A1: 附件
A2: 织金县2021年秋季乡镇事业单位公开招聘应征入伍大学毕业生退役后拟聘用人员名单
A3: 序号 | B3: 姓名 | C3: 性别 | D3: 学历 | E3: 准考证号 | F3: 笔试成绩 | G3: 是否进入面试 | H3: 面试序号 | I3: 面试成绩 | J3: 总成绩 | K3: 是否服役期满 | L3: 拟聘用单位
A4: 1 | B4: 卢斌斌 | C4: 男 | D4: 专科 | E4: =VLOOKUP(B4,[3]Sheet2!$B:$C,2,FALSE) -> 20210550109 | F4: =VLOOKUP(E4,[3]Sheet2!$C:$L,3,FALSE) -> 82.00 | G4: 是 | H4: =VLOOKUP(E4,[3]Sheet2!$C:$L,5,FALSE) -> 5 | I4: =VLOOKUP(E4,[3]Sheet2!$C:$L,6,FALSE) -> 81.80 | J4: =VLOOKUP(E4,[3]Sheet2!$C:$L,10,FALSE) -> 65.52 | K4: 是 | L4: 织金县阿弓镇林业环保站
A5: 2 | B5: 王云 | C5: 男 | D5: 专科 | E5: =VLOOKUP(B5,[3]Sheet2!$B:$C,2,FALSE) -> 20210550116 | F5: =VLOOKUP(E5,[3]Sheet2!$C:$L,3,FALSE) -> 80.00 | G5: 是 | H5: =VLOOKUP(E5,[3]Sheet2!$C:$L,5,FALSE) -> 51 | I5: =VLOOKUP(E5,[3]Sheet2!$C:$L,6,FALSE) -> 79.80 | J5: =VLOOKUP(E5,[3]Sheet2!$C:$L,10,FALSE) -> 63.92 | K5: 是 | L5: 织金县大平乡农业服务中心
A6: 3 | B6: 吴佳宸 | C6: 男 | D6: 大学 | E6: =VLOOKUP(B6,[3]Sheet2!$B:$C,2,FALSE) -> 20210550131 | F6: =VLOOKUP(E6,[3]Sheet2!$C:$L,3,FALSE) -> 97.00 | G6: 是 | H6: =VLOOKUP(E6,[3]Sheet2!$C:$L,5,FALSE) -> 57 | I6: =VLOOKUP(E6,[3]Sheet2!$C:$L,6,FALSE) -> 81.40 | J6: =VLOOKUP(E6,[3]Sheet2!$C:$L,10,FALSE) -> 71.36 | K6: 是 | L6: 织金县官寨乡村镇规划建设站
A7: 4 | B7: 何明杰 | C7: 男 | D7: 大学 | E7: =VLOOKUP(B7,[3]Sheet2!$B:$C,2,FALSE) -> 20210550233 | F7: =VLOOKUP(E7,[3]Sheet2!$C:$L,3,FALSE) -> 98.00 | G7: 是 | H7: =VLOOKUP(E7,[3]Sheet2!$C:$L,5,FALSE) -> 56 | I7: =VLOOKUP(E7,[3]Sheet2!$C:$L,6,FALSE) -> 81.80 | J7: =VLOOKUP(E7,[3]Sheet2!$C:$L,10,FALSE) -> 71.92 | K7: 是 | L7: 织金县桂果镇人力资源和杜会保障服务中心
A8: 5 | B8: 王福超 | C8: 男 | D8: 专科 | E8: =VLOOKUP(B8,[3]Sheet2!$B:$C,2,FALSE) -> 20210550215 | F8: =VLOOKUP(E8,[3]Sheet2!$C:$L,3,FALSE) -> 86.00 | G8: 是 | H8: =VLOOKUP(E8,[3]Sheet2!$C:$L,5,FALSE) -> 30 | I8: =VLOOKUP(E8,[3]Sheet2!$C:$L,6,FALSE) -> 77.20 | J8: =VLOOKUP(E8,[3]Sheet2!$C:$L,10,FALSE) -> 65.28 | K8: 是 | L8: 织金县黑土镇乡村振兴服务中心
A9: 6 | B9: 黄元健 | C9: 男 | D9: 大学 | E9: =VLOOKUP(B9,[3]Sheet2!$B:$C,2,FALSE) -> 20210550206 | F9: =VLOOKUP(E9,[3]Sheet2!$C:$L,3,FALSE) -> 90.50 | G9: 是 | H9: =VLOOKUP(E9,[3]Sheet2!$C:$L,5,FALSE) -> 14 | I9: =VLOOKUP(E9,[3]Sheet2!$C:$L,6,FALSE) -> 83.20 | J9: =VLOOKUP(E9,[3]Sheet2!$C:$L,10,FALSE) -> 69.48 | K9: 是 | L9: 织金县化起镇人力资源和社会保障服务中心
A10: 7 | B10: 卢瑶 | C10: 男 | D10: 大学 | E10: =VLOOKUP(B10,[3]Sheet2!$B:$C,2,FALSE) -> 20210550213 | F10: =VLOOKUP(E10,[3]Sheet2!$C:$L,3,FALSE) -> 90.50 | G10: 是 | H10: =VLOOKUP(E10,[3]Sheet2!$C:$L,5,FALSE) -> 16 | I10: =VLOOKUP(E10,[3]Sheet2!$C:$L,6,FALSE) -> 80.20 | J10: =VLOOKUP(E10,[3]Sheet2!$C:$L,10,FALSE) -> 68.28 | K10: 是 | L10: 织金县鸡场乡村镇规划建设站
A11: 8 | B11: 曹发勇 | C11: 男 | D11: 大学 | E11: =VLOOKUP(B11,[3]Sheet2!$B:$C,2,FALSE) -> 20210550121 | F11: =VLOOKUP(E11,[3]Sheet2!$C:$L,3,FALSE) -> 87.00 | G11: 是 | H11: =VLOOKUP(E11,[3]Sheet2!$C:$L,5,FALSE) -> 45 | I11: =VLOOKUP(E11,[3]Sheet2!$C:$L,6,FALSE) -> 72.60 | J11: =VLOOKUP(E11,[3]Sheet2!$C:$L,10,FALSE) -> 63.84 | K11: 是 | L11: 织金县鸡场乡农业服务中心
A12: 9 | B12: 彭忠荣 | C12: 男 | D12: 大学 | E12: =VLOOKUP(B12,[3]Sheet2!$B:$C,2,FALSE) -> 20210550228 | F12: =VLOOKUP(E12,[3]Sheet2!$C:$L,3,FALSE) -> 95.00 | G12: 是 | H12: =VLOOKUP(E12,[3]Sheet2!$C:$L,5,FALSE) -> 18 | I12: =VLOOKUP(E12,[3]Sheet2!$C:$L,6,FALSE) -> 75.80 | J12: =VLOOKUP(E12,[3]Sheet2!$C:$L,10,FALSE) -> 68.32 | K12: 是 | L12: 织金县金龙乡农业服务中心
A13: 10 | B13: 邓坤 | C13: 男 | D13: 专科 | E13: =VLOOKUP(B13,[3]Sheet2!$B:$C,2,FALSE) -> 20210550115 | F13: =VLOOKUP(E13,[3]Sheet2!$C:$L,3,FALSE) -> 82.00 | G13: 是 | H13: =VLOOKUP(E13,[3]Sheet2!$C:$L,5,FALSE) -> 23 | I13: =VLOOKUP(E13,[3]Sheet2!$C:$L,6,FALSE) -> 79.80 | J13: =VLOOKUP(E13,[3]Sheet2!$C:$L,10,FALSE) -> 64.72 | K13: 是 | L13: 织金县龙场镇乡村振兴服务中心
A14: 11 | B14: 陈波 | C14: 男 | D14: 大学 | E14: =VLOOKUP(B14,[3]Sheet2!$B:$C,2,FALSE) -> 20210550128 | F14: =VLOOKUP(E14,[3]Sheet2!$C:$L,3,FALSE) -> 95.00 | G14: 是 | H14: =VLOOKUP(E14,[3]Sheet2!$C:$L,5,FALSE) -> 6 | I14: =VLOOKUP(E14,[3]Sheet2!$C:$L,6,FALSE) -> 78.80 | J14: =VLOOKUP(E14,[3]Sheet2!$C:$L,10,FALSE) -> 69.52 | K14: 是 | L14: 织金县猫场镇乡村振兴服务中心
A15: 12 | B15: 范涛 | C15: 男 | D15: 专科 | E15: =VLOOKUP(B15,[3]Sheet2!$B:$C,2,FALSE) -> 20210550126 | F15: =VLOOKUP(E15,[3]Sheet2!$C:$L,3,FALSE) -> 90.00 | G15: 是 | H15: =VLOOKUP(E15,[3]Sheet2!$C:$L,5,FALSE) -> 47 | I15: =VLOOKUP(E15,[3]Sheet2!$C:$L,6,FALSE) -> 79.20 | J15: =VLOOKUP(E15,[3]Sheet2!$C:$L,10,FALSE) -> 67.68 | K15: 是 | L15: 织金县纳雍乡农业服务中心
A16: 13 | B16: 余登志 | C16: 男 | D16: 大学 | E16: =VLOOKUP(B16,[3]Sheet2!$B:$C,2,FALSE) -> 20210550210 | F16: =VLOOKUP(E16,[3]Sheet2!$C:$L,3,FALSE) -> 83.00 | G16: 是 | H16: =VLOOKUP(E16,[3]Sheet2!$C:$L,5,FALSE) -> 39 | I16: =VLOOKUP(E16,[3]Sheet2!$C:$L,6,FALSE) -> 82.60 | J16: =VLOOKUP(E16,[3]Sheet2!$C:$L,10,FALSE) -> 66.24 | K16: 是 | L16: 织金县上坪寨乡农业服务中心
A17: 14 | B17: 王林 | C17: 男 | D17: 专科 | E17: =VLOOKUP(B17,[3]Sheet2!$B:$C,2,FALSE) -> 20210550114 | F17: =VLOOKUP(E17,[3]Sheet2!$C:$L,3,FALSE) -> 88.00 | G17: 是 | H17: =VLOOKUP(E17,[3]Sheet2!$C:$L,5,FALSE) -> 54 | I17: =VLOOKUP(E17,[3]Sheet2!$C:$L,6,FALSE) -> 76.80 | J17: =VLOOKUP(E17,[3]Sheet2!$C:$L,10,FALSE) -> 65.92 | K17: 是 | L17: 织金县少普镇乡村振兴服务中心
A18: 15 | B18: 张鹏 | C18: 男 | D18: 大学 | E18: =VLOOKUP(B18,[3]Sheet2!$B:$C,2,FALSE) -> 20210550203 | F18: =VLOOKUP(E18,[3]Sheet2!$C:$L,3,FALSE) -> 93.50 | G18: 是 | H18: =VLOOKUP(E18,[3]Sheet2!$C:$L,5,FALSE) -> 35 | I18: =VLOOKUP(E18,[3]Sheet2!$C:$L,6,FALSE) -> 74.80 | J18: =VLOOKUP(E18,[3]Sheet2!$C:$L,10,FALSE) -> 67.32 | K18: 是 | L18: 织金县少普镇农业服务中心
A19: 16 | B19: 张祥 | C19: 男 | D19: 大学 | E19: =VLOOKUP(B19,[3]Sheet2!$B:$C,2,FALSE) -> 20210550120 | F19: =VLOOKUP(E19,[3]Sheet2!$C:$L,3,FALSE) -> 84.50 | G19: 是 | H19: =VLOOKUP(E19,[3]Sheet2!$C:$L,5,FALSE) -> 50 | I19: =VLOOKUP(E19,[3]Sheet2!$C:$L,6,FALSE) -> 84.40 | J19: =VLOOKUP(E19,[3]Sheet2!$C:$L,10,FALSE) -> 67.56 | K19: 是 | L19: 织金县实兴乡乡村振兴服务中心
A20: 17 | B20: 杨健 | C20: 男 | D20: 大学 | E20: =VLOOKUP(B20,[3]Sheet2!$B:$C,2,FALSE) -> 20210550226 | F20: =VLOOKUP(E20,[3]Sheet2!$C:$L,3,FALSE) -> 104.00 | G20: 是 | H20: =VLOOKUP(E20,[3]Sheet2!$C:$L,5,FALSE) -> 15 | I20: =VLOOKUP(E20,[3]Sheet2!$C:$L,6,FALSE) -> 83.00 | J20: =VLOOKUP(E20,[3]Sheet2!$C:$L,10,FALSE) -> 74.80 | K20: 是 | L20: 织金县能家场镇农业服务中心
A21: 18 | B21: 刘昶余 | C21: 男 | D21: 专科 | E21: =VLOOKUP(B21,[3]Sheet2!$B:$C,2,FALSE) -> 20210550219 | F21: =VLOOKUP(E21,[3]Sheet2!$C:$L,3,FALSE) -> 111.50 | G21: 是 | H21: =VLOOKUP(E21,[3]Sheet2!$C:$L,5,FALSE) -> 2 | I21: =VLOOKUP(E21,[3]Sheet2!$C:$L,6,FALSE) -> 80.80 | J21: =VLOOKUP(E21,[3]Sheet2!$C:$L,10,FALSE) -> 76.92 | K21: 是 | L21: 织金县以那镇农业服务中心
A22: 19 | B22: 王玄武 | C22: 男 | D22: 大学 | E22: =VLOOKUP(B22,[3]Sheet2!$B:$C,2,FALSE) -> 20210550119 | F22: =VLOOKUP(E22,[3]Sheet2!$C:$L,3,FALSE) -> 96.00 | G22: 是 | H22: =VLOOKUP(E22,[3]Sheet2!$C:$L,5,FALSE) -> 53 | I22: =VLOOKUP(E22,[3]Sheet2!$C:$L,6,FALSE) -> 73.60 | J22: =VLOOKUP(E22,[3]Sheet2!$C:$L,10,FALSE) -> 67.84 | K22: 是 | L22: 织金县中寨镇农业服务中心
